fUSD/lending_fUSD_20250107
["ID","MTS","AMOUNT","RATE_DAILY","PERIOD"]
[348016179,1736267461859,-500.0,0.00010681,2]
[348016180,1736267461868,-500.0,0.00010681,2]
[348016181,1736267461877,-723.03,0.00010681,2]
[348016182,1736267461887,-732.85,0.00010681,2]
[348016183,1736267461896,-500.0,0.00010681,2]
[348016184,1736267461904,-500.0,0.00010681,2]
[348016185,1736267461913,-500.0,0.00010681,2]
[348016186,1736267461922,-500.0,0.00010681,2]
[348016187,1736267461931,-500.0,0.00010681,2]
[348016188,1736267461940,-500.0,0.00010681,2]
[348016189,1736267461949,-500.0,0.00010681,2]
[348016190,1736267461959,-500.0,0.00010681,2]
[348016191,1736267461968,-500.0,0.00010681,2]
[348016192,1736267461977,-500.0,0.00010681,2]
[348016193,1736267461986,-500.0,0.00010681,2]
[348016194,1736267461998,-500.0,0.00010681,2]
[348016195,1736267462007,-500.0,0.00010681,2]
[348016196,1736267462016,-500.0,0.00010681,2]
[348016197,1736267462025,-500.0,0.00010681,2]
[348016198,1736267462034,-429.07365154,0.00010681,2]
[348016199,1736267462044,-500.0,0.00010681,2]
[348016200,1736267462054,-500.0,0.00010681,2]
[348016201,1736267462063,-500.0,0.00010681,2]
[348016202,1736267462072,-500.0,0.00010681,2]
[348016203,1736267462081,-715.02,0.00010681,2]
[348016204,1736267462091,-500.0,0.00010681,2]
[348016205,1736267462100,-500.0,0.00010681,2]
[348016206,1736267462110,-500.0,0.00010681,2]
[348016207,1736267462121,-500.0,0.00010681,2]
[348016208,1736267462131,-500.0,0.00010681,2]
[348016209,1736267462140,-500.0,0.00010681,2]
[348016210,1736267462150,-500.0,0.00010681,2]
[348016211,1736267462159,-500.0,0.00010681,2]
[348016212,1736267462168,-500.0,0.00010681,2]
[348016213,1736267462177,-607.34,0.00010681,2]
[348016214,1736267462187,-500.0,0.00010681,2]
[348016215,1736267462197,-500.0,0.00010681,2]
[348016216,1736267462207,-616.84,0.00010681,2]
[348016217,1736267462216,-500.0,0.00010681,2]
[348016218,1736267462226,-1055.48808993,0.00010682,3]
[348016219,1736267462235,-1448.07,0.00010682,2]
[348016220,1736267462247,-1264.08,0.00010682,2]
[348016221,1736267462256,-1419.04,0.00010682,2]
[348016222,1736267462266,-1856.64,0.00010682,2]
[348016223,1736267462275,-500.0,0.00010682,2]
[348016224,1736267462285,-1575.92,0.00010682,2]
[348016225,1736267462294,-1020.41,0.00010682,2]
[348016226,1736267462303,-2222.75,0.00010682,2]
[348016227,1736267462312,-3523.38,0.00010682,2]
[348016228,1736267462321,-2404.94,0.00010682,2]
[348016229,1736267462331,-902.2,0.00010682,2]
[348016230,1736267462340,-6146.81,0.00010682,2]
[348016231,1736267462349,-500.0,0.00010682,2]
[348016232,1736267462359,-977.25,0.00010682,2]
[348016233,1736267462368,-800.04,0.00010682,2]
[348016234,1736267462377,-823.04,0.00010682,2]
[348016235,1736267462387,-606.41,0.00010682,2]
[348016236,1736267462396,-1003.71,0.00010682,2]
[348016237,1736267462404,-1094.17,0.00010682,2]
[348016238,1736267462413,-500.0,0.00010682,2]
[348016239,1736267462422,-1189.13,0.00010682,2]
[348016240,1736267462432,-500.0,0.00010682,2]
[348016241,1736267462441,-8998.760753,0.00010682,2]
[348016242,1736267462450,-764.34,0.00010682,2]
[348016243,1736267462459,-1130.65,0.00010682,2]
[348016244,1736267462468,-313.31406,0.00010682,2]
[348016245,1736267462478,-500.0,0.00010682,2]
[348016246,1736267462488,-500.0,0.00010682,2]
[348016247,1736267462499,-209.941397,0.00010682,2]
[348016248,1736267462508,-1389.48,0.00010682,2]
[348016249,1736267462517,-500.0,0.00010682,2]
[348016250,1736267462526,-827.3,0.00010682,2]
[348016251,1736267462535,-976.28,0.00010682,2]
[348016252,1736267462544,-1057.82,0.00010682,2]
[348016253,1736267462554,-827.52,0.00010682,2]
[348016254,1736267462563,-736.09,0.00010682,2]
[348016255,1736267462572,-972.73,0.00010682,2]
[348016256,1736267462581,-8403.546868,0.00010682,2]
[348016257,1736267462589,-508.87,0.00010682,2]
[348016258,1736267462598,-1238.35,0.00010682,2]
[348016259,1736267462607,-1517.5,0.00010682,2]
[348016260,1736267462616,-697.07,0.00010682,2]
[348016261,1736267462625,-500.0,0.00010682,2]
[348016262,1736267462635,-650.94,0.00010682,2]
[348016263,1736267462644,-500.0,0.00010682,2]
[348016264,1736267462654,-592.92,0.00010682,2]
[348016265,1736267462663,-637.86,0.00010682,2]
[348016266,1736267462675,-500.0,0.00010682,2]
[348016267,1736267462684,-862.91,0.00010682,2]
[348016268,1736267462694,-500.0,0.00010682,2]
[348016269,1736267462703,-1167.01,0.00010682,2]
[348016270,1736267462713,-639.51,0.00010682,2]
[348016271,1736267462722,-525.32,0.00010682,2]
[348016272,1736267462731,-1392.78,0.00010682,2]
[348016273,1736267462741,-500.0,0.00010682,2]
[348016274,1736267462750,-649.96,0.00010682,2]
[348016275,1736267462758,-726.27,0.00010682,2]
[348016276,1736267462766,-561.25,0.00010682,2]
[348016277,1736267462775,-1064.65,0.00010682,2]
[348016278,1736267462784,-500.0,0.00010682,2]
[348016279,1736267462793,-500.0,0.00010682,2]
[348016280,1736267462803,-650.41,0.00010682,2]
[348016281,1736267462812,-644.05,0.00010682,2]
[348016282,1736267462822,-2280.46,0.00010682,2]
[348016283,1736267462831,-523.65,0.00010682,2]
[348016284,1736267462840,-1006.05,0.00010682,2]
[348016285,1736267462849,-569.75,0.00010682,2]
[348016286,1736267462858,-531.37,0.00010682,2]
[348016287,1736267462868,-500.0,0.00010682,2]
[348016288,1736267462877,-228.87880732,0.00010682,2]
[348016289,1736267462886,-500.0,0.00010682,2]
[348016290,1736267462895,-506.91,0.00010682,2]
[348016291,1736267462904,-500.0,0.00010682,2]
[348016292,1736267462913,-500.0,0.00010682,2]
[348016293,1736267462922,-500.0,0.00010682,2]
[348016294,1736267462931,-1071.03,0.00010682,2]
[348016295,1736267462940,-572.31,0.00010682,2]
[348016296,1736267462949,-710.48,0.00010682,2]
[348016297,1736267462958,-698.76,0.00010682,2]
[348016298,1736267462967,-1800.27,0.00010682,2]
[348016299,1736267462977,-500.0,0.00010682,2]
[348016300,1736267462986,-936.59,0.00010682,2]
[348016301,1736267462998,-1115.17,0.00010682,2]
[348016302,1736267463007,-500.0,0.00010682,2]
[348016303,1736267463016,-1255.6,0.00010682,2]
[348016304,1736267463026,-621.13,0.00010682,2]
[348016305,1736267463035,-500.0,0.00010682,2]
[348016306,1736267463045,-475.83947211,0.00010682,2]
[348016307,1736267463054,-743.76,0.00010682,2]
[348016308,1736267463064,-780.66,0.00010682,2]
[348016309,1736267463074,-500.0,0.00010682,2]
[348016310,1736267463084,-504.67,0.00010682,2]
[348016311,1736267463094,-1327.66,0.00010682,2]
[348016312,1736267463104,-889.21,0.00010682,2]
[348016313,1736267463119,-1002.17,0.00010682,2]
[348016314,1736267463129,-500.0,0.00010682,2]
[348016315,1736267463140,-500.0,0.00010682,2]
[348016316,1736267463151,-1267.29,0.00010682,2]
[348016317,1736267463162,-1106.01,0.00010682,2]
[348016318,1736267463173,-986.75,0.00010682,2]
[348016319,1736267463183,-532.18,0.00010682,2]
[348016320,1736267463194,-779.52,0.00010682,2]
[348016321,1736267463206,-500.0,0.00010682,2]
[348016322,1736267463216,-500.0,0.00010682,2]
[348016323,1736267463227,-908.39,0.00010682,2]
[348016324,1736267463239,-900.5,0.00010682,2]
[348016325,1736267463253,-500.0,0.00010682,2]
[348016326,1736267463263,-500.0,0.00010682,2]
[348016327,1736267463273,-500.0,0.00010682,2]
[348016328,1736267463284,-500.0,0.00010682,2]
[348016329,1736267463294,-500.0,0.00010682,2]
[348016330,1736267463305,-564.59,0.00010682,2]
[348016331,1736267463316,-776.21,0.00010682,2]
[348016332,1736267463339,-608.45,0.00010682,2]
[348016333,1736267463349,-824.88,0.00010682,2]
[348016334,1736267463360,-1239.8,0.00010682,2]
[348016335,1736267463370,-742.58,0.00010682,2]
[348016336,1736267463380,-853.99,0.00010682,2]
[348016337,1736267463390,-687.3,0.00010682,2]
[348016338,1736267463405,-760.53,0.00010682,2]
[348016339,1736267463416,-606.31,0.00010682,2]
[348016340,1736267463426,-702.01,0.00010682,2]
[348016341,1736267463437,-570.16,0.00010682,2]
[348016342,1736267463447,-572.93,0.00010682,2]
[348016343,1736267463457,-500.0,0.00010682,2]
[348016344,1736267463467,-500.0,0.00010682,2]
[348016345,1736267463476,-1729.76,0.00010682,2]
[348016346,1736267463486,-500.0,0.00010682,2]
[348016347,1736267463500,-871.59,0.00010682,2]
[348016348,1736267463510,-500.0,0.00010682,2]
[348016349,1736267463520,-908.21,0.00010682,2]
[348016350,1736267463530,-3191.89,0.00010682,2]
[348016351,1736267463540,-4791.14,0.00010682,2]
[348016352,1736267463550,-1152.15,0.00010682,2]
[348016353,1736267463560,-975.93,0.00010682,2]
[348016354,1736267463570,-2596.0,0.00010682,2]
[348016355,1736267463580,-500.0,0.00010682,2]
[348016356,1736267463591,-675.6,0.00010682,2]
[348016357,1736267463602,-500.0,0.00010682,2]
[348016358,1736267463612,-564.57,0.00010682,2]
[348016359,1736267463622,-1792.92,0.00010682,2]
[348016360,1736267463631,-577.03,0.00010682,2]
[348016361,1736267463643,-2547.6,0.00010682,2]
[348016362,1736267463653,-500.0,0.00010682,2]
[348016363,1736267463663,-1083.45,0.00010682,2]
[348016364,1736267463673,-1069.0,0.00010682,2]
[348016365,1736267463683,-1142.93,0.00010682,2]
[348016366,1736267463692,-598.61,0.00010682,2]
[348016367,1736267463703,-3792.04,0.00010682,2]
[348016368,1736267463712,-3365.26,0.00010682,2]
[348016369,1736267463722,-500.0,0.00010682,2]
[348016370,1736267463731,-500.0,0.00010682,2]
[348016371,1736267463742,-794.82,0.00010682,2]
[348016372,1736267463751,-1155.94,0.00010682,2]
[348016373,1736267463761,-2895.7,0.00010682,2]
[348016374,1736267463771,-642.15,0.00010682,2]
[348016375,1736267463780,-1859.47,0.00010682,2]
[348016376,1736267463790,-997.66,0.00010682,2]
[348016377,1736267463800,-765.44,0.00010682,2]
[348016378,1736267463810,-1049.1,0.00010682,2]
[348016379,1736267463820,-897.79,0.00010682,2]
[348016380,1736267463829,-3050.36,0.00010682,2]
[348016381,1736267463839,-632.05,0.00010682,2]
[348016382,1736267463849,-500.0,0.00010682,2]
[348016383,1736267463858,-1050.62,0.00010682,2]
[348016384,1736267463868,-724.46,0.00010682,2]
[348016385,1736267463876,-898.05,0.00010682,2]
[348016386,1736267463885,-7679.74,0.00010682,2]
[348016387,1736267463895,-500.0,0.00010682,2]
[348016388,1736267463905,-1671.74,0.00010682,2]
[348016389,1736267463916,-500.0,0.00010682,2]
[348016390,1736267463926,-500.0,0.00010682,2]
[348016391,1736267463935,-500.0,0.00010682,2]
[348016392,1736267463945,-1444.87,0.00010682,2]
[348016393,1736267463955,-1049.13,0.00010682,2]
[348016394,1736267463964,-542.85,0.00010682,2]
[348016395,1736267463974,-558.15,0.00010682,2]
[348016396,1736267463984,-647.23,0.00010682,2]
[348016397,1736267463998,-969.42,0.00010682,2]
[348016398,1736267464009,-1367.4,0.00010682,2]
[348016399,1736267464019,-2331.42,0.00010682,2]
[348016400,1736267464029,-500.0,0.00010682,2]
[348016401,1736267464039,-1163.5,0.00010682,2]
[348016402,1736267464049,-1993.52,0.00010682,2]
[348016403,1736267464059,-577.93,0.00010682,2]
[348016404,1736267464069,-615.01,0.00010682,2]
[348016405,1736267464081,-686.12,0.00010682,2]
[348016406,1736267464091,-1126.8,0.00010682,2]
[348016407,1736267464101,-1188.88,0.00010682,2]
[348016408,1736267464113,-1316.37,0.00010682,2]
[348016409,1736267464127,-1587.65,0.00010682,2]
[348016410,1736267464138,-5021.88,0.00010682,2]
[348016411,1736267464149,-1842.76,0.00010682,2]
[348016412,1736267464159,-1081.07,0.00010682,2]
[348016413,1736267464170,-623.76,0.00010682,2]
[348016414,1736267464181,-526.22,0.00010682,2]
[348016415,1736267464191,-1954.15,0.00010682,2]
[348016416,1736267464201,-1293.13,0.00010682,2]
[348016417,1736267464213,-8080.42,0.00010682,2]
[348016418,1736267464223,-1184.45,0.00010682,2]
[348016419,1736267464234,-1095.91,0.00010682,2]
[348016420,1736267464248,-1513.27,0.00010682,2]
[348016421,1736267464259,-965.37,0.00010682,2]
[348016422,1736267464270,-732.67,0.00010682,2]
[348016423,1736267464282,-3491.12,0.00010682,2]
[348016424,1736267464293,-500.0,0.00010682,2]
[348016425,1736267464303,-500.0,0.00010683,2]
[348016426,1736267464314,-500.0,0.00010683,2]
[348016427,1736267464324,-500.0,0.00010683,2]
[348016428,1736267464334,-500.0,0.00010683,2]
[348016429,1736267464344,-500.0,0.00010683,2]
[348016430,1736267464355,-500.0,0.00010683,2]
[348016431,1736267464365,-612.41,0.00010683,2]
[348016432,1736267464377,-500.0,0.00010683,2]
[348016433,1736267464387,-500.0,0.00010683,2]
[348016434,1736267464397,-568.3,0.00010683,2]
[348016435,1736267464409,-500.0,0.00010683,2]
[348016436,1736267464419,-500.0,0.00010683,2]
[348016437,1736267464431,-500.0,0.00010683,2]
[348016438,1736267464441,-500.0,0.00010683,2]
[348016439,1736267464452,-500.0,0.00010683,2]
[348016440,1736267464464,-500.0,0.00010683,2]
[348016441,1736267464475,-500.0,0.00010683,2]
[348016442,1736267464488,-500.0,0.00010683,2]
[348016443,1736267464505,-500.0,0.00010683,2]
[348016444,1736267464516,-500.0,0.00010683,2]
[348016445,1736267464528,-500.0,0.00010683,2]
[348016446,1736267464539,-500.0,0.00010683,2]
[348016447,1736267464549,-500.0,0.00010683,2]
[348016448,1736267464560,-500.0,0.00010683,2]
[348016449,1736267464571,-500.0,0.00010683,2]
[348016450,1736267464582,-500.0,0.00010683,2]
[348016451,1736267464593,-601.88,0.00010683,2]
[348016452,1736267464603,-620.36,0.00010683,2]
[348016453,1736267464615,-500.0,0.00010683,2]
[348016454,1736267464626,-500.0,0.00010683,2]
[348016455,1736267464639,-500.0,0.00010683,2]
[348016456,1736267464650,-801.47,0.00010683,2]
[348016457,1736267464660,-729.91,0.00010683,2]
[348016458,1736267464670,-500.0,0.00010683,2]
[348016459,1736267464679,-500.0,0.00010683,2]
[348016460,1736267464689,-500.0,0.00010683,2]
[348016461,1736267464699,-500.0,0.00010683,2]
[348016462,1736267464708,-500.0,0.00010683,2]
[348016463,1736267464718,-928.62,0.00010683,2]
[348016464,1736267464728,-500.0,0.00010683,2]
[348016465,1736267464738,-854.16,0.00010683,2]
[348016466,1736267464749,-500.0,0.00010683,2]
[348016467,1736267464758,-500.0,0.00010683,2]
[348016468,1736267464767,-542.86,0.00010683,2]
[348016469,1736267464777,-500.0,0.00010683,2]
[348016470,1736267464786,-599.33,0.00010683,2]
[348016471,1736267464796,-500.0,0.00010683,2]
[348016472,1736267464805,-500.0,0.00010683,2]
[348016473,1736267464814,-500.0,0.00010683,2]
[348016474,1736267464824,-810.99,0.00010683,2]
[348016475,1736267464833,-599.93,0.00010683,2]
[348016476,1736267464842,-508.05,0.00010683,2]
[348016477,1736267464851,-1292.83,0.00010683,2]
[348016478,1736267464861,-1201.14,0.00010683,2]
[348016479,1736267464871,-500.0,0.00010683,2]
[348016480,1736267464880,-571.06,0.00010683,2]
[348016481,1736267464891,-525.59,0.00010683,2]
[348016482,1736267464900,-810.82,0.00010683,2]
[348016483,1736267464910,-500.0,0.00010683,2]
[348016484,1736267464919,-500.0,0.00010683,2]
[348016485,1736267464929,-932.52,0.00010683,2]
[348016486,1736267464938,-592.71,0.00010683,2]
[348016487,1736267464947,-755.02,0.00010683,2]
[348016488,1736267464956,-2265.62,0.00010683,2]
[348016489,1736267464966,-1783.23,0.00010683,2]
[348016490,1736267464976,-1708.93,0.00010683,2]
[348016491,1736267464985,-732.65,0.00010683,2]
[348016492,1736267464999,-500.0,0.00010683,2]
[348016493,1736267465009,-968.82,0.00010683,2]
[348016494,1736267465019,-656.33,0.00010683,2]
[348016495,1736267465028,-500.0,0.00010683,2]
[348016496,1736267465037,-2312.14,0.00010683,2]
[348016497,1736267465047,-653.43,0.00010683,2]
[348016498,1736267465057,-509.35,0.00010683,2]
[348016499,1736267465067,-500.0,0.00010683,2]
[348016500,1736267465077,-1224.71,0.00010683,2]
[348016501,1736267465086,-676.46,0.00010683,2]
[348016502,1736267465096,-1278.64,0.00010683,2]
[348016503,1736267465105,-500.0,0.00010683,2]
[348016504,1736267465119,-2273.14,0.00010683,2]
[348016505,1736267465128,-500.0,0.00010683,2]
[348016506,1736267465138,-2178.43,0.00010683,2]
[348016507,1736267465147,-500.0,0.00010683,2]
[348016508,1736267465158,-655.64,0.00010683,2]
[348016509,1736267465168,-1755.68,0.00010683,2]
[348016510,1736267465177,-500.0,0.00010683,2]
[348016511,1736267465187,-831.14,0.00010683,2]
[348016512,1736267465198,-1824.34,0.00010683,2]
[348016513,1736267465208,-500.0,0.00010683,2]
[348016514,1736267465219,-1672.31,0.00010683,2]
[348016515,1736267465228,-506.99,0.00010683,2]
[348016516,1736267465238,-1234.28,0.00010683,2]
[348016517,1736267465250,-5758.85,0.00010683,2]
[348016518,1736267465260,-3286.8,0.00010683,2]
[348016519,1736267465269,-7550.74,0.00010683,2]
[348016520,1736267465281,-1665.46,0.00010683,2]
[348016521,1736267465291,-1959.51,0.00010683,2]
[348016522,1736267465301,-1750.43,0.00010683,2]
[348016523,1736267465311,-500.0,0.00010683,2]
[348016524,1736267465321,-1973.97,0.00010683,2]
[348016525,1736267465345,-2041.29,0.00010683,2]
[348016526,1736267465354,-769.78,0.00010683,2]
[348016527,1736267465364,-1101.15,0.00010684,2]
[348016528,1736267465374,-1164.44,0.00010684,2]
[348016529,1736267465384,-2840.58,0.00010684,2]
[348016530,1736267465394,-500.0,0.00010684,2]
[348016531,1736267465404,-1456.13,0.00010684,2]
[348016532,1736267465414,-576.91,0.00010684,2]
[348016533,1736267465424,-506.7,0.00010691,2]
[348016534,1736267465433,-2659.72,0.00010691,2]
[348016535,1736267465443,-4380.46,0.00010691,2]
[348016536,1736267465453,-2044.96,0.00010691,2]
[348016537,1736267465462,-500.0,0.00010691,2]
[348016538,1736267465471,-1333.99,0.00010691,2]
[348016539,1736267465480,-3245.41,0.00010691,2]
[348016540,1736267465489,-520.03,0.00010691,2]
[348016541,1736267465502,-539.65,0.00010691,2]
[348016542,1736267465511,-500.0,0.00010691,2]
[348016543,1736267465520,-500.0,0.00010691,2]
[348016544,1736267465529,-500.0,0.00010691,2]
[348016545,1736267465537,-500.0,0.00010691,2]
[348016546,1736267465546,-1540.67,0.00010691,2]
[348016547,1736267465556,-566.0,0.00010693,2]
[348016548,1736267465565,-634.0,0.00010693,2]
[348016549,1736267465574,-150.22,0.00010693,2]
[348016550,1736267465583,-1916.595,0.00010693,2]
[348016551,1736267465593,-3776.0,0.00010693,2]
[348016552,1736267465603,-1258.0,0.00010693,2]
[348016553,1736267465612,-819.0,0.00010693,2]
[348016554,1736267465621,-889.914,0.00010693,2]
[348016555,1736267465630,-3976.0,0.00010693,2]
[348016556,1736267465640,-540.052,0.00010693,2]
[348016557,1736267465649,-1103.0,0.00010693,2]
[348016558,1736267465659,-150.744,0.00010693,2]
[348016559,1736267465668,-3894.0,0.00010693,2]
[348016560,1736267465678,-1267.0,0.00010693,2]
[348016561,1736267465687,-780.695,0.00010693,2]
[348016562,1736267465696,-2014.0,0.00010693,2]
[348016563,1736267465706,-3000.0,0.000107,2]
[348016564,1736267465715,-150.0,0.00010739,2]
[348016565,1736267465725,-150.0,0.00010766,2]
[348016566,1736267465735,-3000.0,0.0001078,2]
[348016567,1736267465746,-184.972,0.00010783,2]
[348016568,1736267465755,-4770.049,0.00010783,2]
[348016569,1736267465765,-500.0,0.00010785,2]
[348016570,1736267465775,-3607.22,0.00010785,2]
[348016571,1736267465784,-1161.73,0.00010785,2]
[348016572,1736267465794,-1461.14,0.00010785,2]
[348016573,1736267465803,-500.0,0.00010785,2]
[348016574,1736267465812,-1326.5,0.00010785,2]
[348016575,1736267465821,-1417.66,0.00010785,2]
[348016576,1736267465831,-989.28,0.00010785,2]
[348016577,1736267465841,-2101.04,0.00010786,2]
[348016578,1736267465850,-1203.13,0.00010786,2]
[348016579,1736267465860,-1338.36,0.00010786,2]
[348016580,1736267465869,-2784.68,0.00010786,2]
[348016581,1736267465878,-2207.76,0.00010786,2]
[348016582,1736267465887,-154.36322553,0.00010799,2]
[348016583,1736267465896,-742.0,0.000108,5]
[348016584,1736267465906,-7000.0,0.000108,3]
[348016585,1736267465916,-25242.19600372,0.000108,2]
[348016586,1736267465925,-2280.46,0.0001082,2]
[348016587,1736267465935,-150.0,0.00010832,2]
[348016588,1736267465944,-152.0,0.00010843,3]
[348016589,1736267465954,-3000.0,0.0001086,2]
[348016590,1736267465963,-429.6623773,0.00010872,2]
[348016591,1736267465973,-8800.0,0.000109,3]
[348016592,1736267465982,-150.0,0.00010925,2]
[348016593,1736267465992,-150.0,0.00010925,2]
[348016594,1736267466001,-500.0,0.00010955,2]
[348016595,1736267466009,-501.958119,0.00010955,2]
[348016596,1736267466017,-500.0,0.00010955,2]
[348016597,1736267466027,-507.52,0.00010955,2]
[348016598,1736267466036,-500.0,0.00010955,2]
[348016599,1736267466046,-500.0,0.00010955,2]
[348016600,1736267466055,-500.0,0.00010955,2]
[348016601,1736267466065,-537.56,0.00010955,2]
[348016602,1736267466075,-501.38540802,0.00010955,2]
[348016603,1736267466084,-501.92379901,0.00010955,2]
[348016604,1736267466093,-501.72286133,0.00010955,2]
[348016605,1736267466102,-487.57512006,0.00010955,2]
[348016606,1736267466113,-500.0,0.00010955,2]
[348016607,1736267466124,-514.52,0.00010955,2]
[348016608,1736267466133,-628.56,0.00010955,2]
[348016609,1736267466143,-501.49037859,0.00010955,2]
[348016610,1736267466152,-503.29134855,0.00010955,2]
[348016611,1736267466162,-543.85,0.00010955,2]
[348016612,1736267466171,-503.80815604,0.00010955,2]
[348016613,1736267466181,-505.56172769,0.00010955,2]
[348016614,1736267466190,-627.63,0.00010955,2]
[348016615,1736267466200,-502.41769861,0.00010955,2]
[348016616,1736267466209,-506.36823557,0.00010955,2]
[348016617,1736267466218,-500.0,0.00010955,2]
[348016618,1736267466227,-502.36246496,0.00010955,2]
[348016619,1736267466237,-504.70116171,0.00010955,2]
[348016620,1736267466249,-503.22697016,0.00010955,2]
[348016621,1736267466259,-500.0,0.00010955,2]
[348016622,1736267466269,-502.16360672,0.00010955,2]
[348016623,1736267466494,-501.27072736,0.00010955,2]
[348016624,1736267466502,-502.98128703,0.00010955,2]
[348016625,1736267466511,-500.0,0.00010955,2]
[348016626,1736267466519,-572.68,0.00010955,2]
[348016627,1736267466527,-500.0,0.00010955,2]
[348016628,1736267466534,-511.83,0.00010955,2]
[348016629,1736267466541,-500.0,0.00010955,2]
[348016630,1736267466549,-185.93655846,0.00010955,2]
[348016631,1736267466556,-164.0834536,0.00010955,2]
[348016632,1736267466564,-309.80782734,0.00010955,2]
[348016633,1736267466572,-504.55,0.00010955,2]
[348016634,1736267466580,-703.59,0.00010955,2]
[348016635,1736267466587,-612.86,0.00010955,2]
[348016636,1736267466595,-513.44,0.00010955,2]
[348016637,1736267466603,-500.0,0.00010955,2]
[348016638,1736267466611,-450.66,0.00010955,2]
[348016639,1736267466618,-500.0,0.00010955,2]
[348016640,1736267466626,-510.71,0.00010955,2]
[348016641,1736267466635,-500.0,0.00010955,2]
[348016642,1736267466645,-519.72,0.00010955,2]
[348016643,1736267466655,-500.0,0.00010955,2]
[348016644,1736267466665,-500.0,0.00010955,2]
[348016645,1736267466674,-500.0,0.00010955,2]
[348016646,1736267466683,-500.0,0.00010955,2]
[348016647,1736267466693,-500.0,0.00010955,2]
[348016648,1736267466702,-500.0,0.00010955,2]
[348016649,1736267466712,-500.0,0.00010955,2]
[348016650,1736267466721,-562.12,0.00010955,2]
[348016651,1736267466730,-646.83,0.00010955,2]
[348016652,1736267466739,-500.0,0.00010955,2]
[348016653,1736267466750,-500.0,0.00010955,2]
[348016654,1736267466760,-500.0,0.00010955,2]
[348016655,1736267466769,-735.56,0.00010955,2]
[348016656,1736267466777,-500.0,0.00010955,2]
[348016657,1736267466785,-500.0,0.00010955,2]
[348016658,1736267466794,-500.0,0.00010955,2]
[348016659,1736267466802,-500.0,0.00010955,2]
[348016660,1736267466810,-500.0,0.00010955,2]
[348016661,1736267466819,-500.0,0.00010955,2]
[348016662,1736267466828,-500.0,0.00010955,2]
[348016663,1736267466837,-273.63351,0.00010955,2]
[348016664,1736267466846,-500.0,0.00010955,2]
[348016665,1736267466855,-513.88,0.00010955,2]
[348016666,1736267466864,-500.0,0.00010955,2]
[348016667,1736267466872,-500.0,0.00010955,2]
[348016668,1736267466881,-500.0,0.00010955,2]
[348016669,1736267466890,-500.0,0.00010955,2]
[348016670,1736267466898,-500.0,0.00010955,2]
[348016671,1736267466905,-500.0,0.00010955,2]
[348016672,1736267466913,-500.0,0.00010955,2]
[348016673,1736267466922,-542.54,0.00010955,2]
[348016674,1736267466929,-500.0,0.00010955,2]
[348016675,1736267466937,-500.0,0.00010955,2]
[348016676,1736267466945,-500.0,0.00010955,2]
[348016677,1736267466952,-500.0,0.00010955,2]
[348016678,1736267466959,-500.0,0.00010955,2]